[Event "American Cup Women Elimination 2024"]
[Site "Saint Louis"]
[Date "2024.03.18"]
[Round "4.4"]
[White "Tokhirjonova, Gulrukhbegim"]
[Black "Lee, Alice"]
[Result "0-1"]
[ECO "A08"]
[WhiteElo "2365"]
[BlackElo "2356"]
[Annotator "TA"]
[PlyCount "102"]
[EventDate "2024.03.11"]
[EventType "k.o."]
[EventCountry "USA"]
[SourceTitle "playchess.com"]
[Source "ChessBase"]
[SourceQuality "1"]
[TimeControl "900+10"]

{[%evp 16,102,0,-2,29,4,13,-43,-49,-49,14,-7,8,-64,-61,-75,-86,-155,-153,-161,-167,-160,-145,-187,-189,-189,-191,-197,-196,-206,-200,-185,-25,-22,-29,-30,-20,-24,-30,-93,-104,-88,-100,-96,-27,-17,-23,-23,0,-46,0,0,0,0,0,0,11,0,0,-13,-31,-2647,-2519,-29984,-29985,-29985,-29986,-29986,-29987,-29990,-29985,-29985,-29976,-29976,-29977,-29977,-29978,-29978,-29979,-29979,-29980,-29980,-29981,-29989,-29990,-29990,-29988,-29990,-29991]} 1. Nf3 {[%emt 0:00:01]} d5 {[%emt 0:00:01]} 2. g3 {[%emt 0:00:02]} g6 {[%emt 0:00:02]} 3. Bg2 {[%emt 0:00:03]} Bg7 {[%emt 0:00:01]} 4. O-O {[%emt 0:00:02]} Nf6 {[%emt 0:00:03]} 5. d3 {[%emt 0:00:01]} O-O {[%emt 0:00:05]} 6. Nbd2 {[%emt 0:00:01]} c5 {[%emt 0:00:01]} 7. e4 {[%emt 0:00:12]} dxe4 {[%emt 0:00:02]} 8. dxe4 {[%emt 0:00:01]} Nc6 {[%emt 0:00:05]} 9. c3 {[%emt 0:00:06]} Ng4 {[%emt 0:00:36]} 10. h3 {[%emt 0:01:04]} Nge5 {[%emt 0:00:03]} 11. Nh2 {[%emt 0:00:13]} (11. Ne1 $11) 11... Nd3 $15 {[%emt 0:01:08] Black is slightly better.} 12. Qe2 {[%emt 0:00:42]} Nxc1 {[%emt 0:00:50]} (12... Be6 $15) 13. Raxc1 {[%emt 0:00:07]} Ne5 {[%emt 0:00:20]} 14. Nb3 {[%emt 0:02:14]} (14. f4 $11 Nd3 15. Rb1) 14... Be6 {[%emt 0:00:23]} 15. Rfd1 {[%emt 0:00:47]} Qb6 {[%emt 0:00:12]} 16. c4 {[%emt 0:02:56]} (16. Rc2 $142) 16... Rad8 {[%emt 0:00:32]} 17. Bf1 {[%emt 0:00:09]} Rxd1 {[%emt 0:00:29]} 18. Qxd1 {[%emt 0:00:02]} Rd8 {[%emt 0:00:02]} 19. Qc2 {[%emt 0:00:13]} Nc6 {[%emt 0:00:45]} 20. Nf3 {[%emt 0:00:27] [#]} a5 $1 {[%emt 0:01:52]} 21. Rb1 {[%emt 0:03:00]} Nb4 {[%emt 0:00:17][%csl LRa2,LRc2]} 22. Qe2 {[%emt 0:00:02]} Nxa2 {[%emt 0:00:04]} 23. Qe3 {[%emt 0:00:01]} Bd4 {[%emt 0:00:41]} (23... Rc8 $19 {...a4 would now be deadly.} 24. Ra1 a4 25. Rxa2 Qxb3 (25... axb3 26. Ra3 $15) 26. Qxb3 axb3) 24. Nbxd4 $11 {[%emt 0:00:28]} cxd4 {[%emt 0:00:02]} 25. Qh6 {[%emt 0:00:17]} f6 {[%emt 0:00:22] Repels Ng5} 26. e5 {[%emt 0:00:03]} d3 {[%emt 0:00:57]} 27. exf6 {[%emt 0:00:24]} (27. Re1 $1 $11 {remains equal.}) 27... exf6 $17 {[%emt 0:00:02]} 28. Re1 {[%emt 0:00:24][%cal Oc4c5]} Bf7 {[%emt 0:05:18]} 29. Re7 {[%emt 0:00:14][%cal Oe7f7]} Qc5 {[%emt 0:02:04]} (29... Bxc4 30. Qg7#) ({Better is} 29... Qxb2 $17 {[%cal Od3d2] ...d2! is the strong threat.} 30. Rxf7 Kxf7 31. Qxh7+ Ke6) 30. Rxb7 $11 {[%emt 0:02:07][%cal Of1d3]} Qxc4 {[%emt 0:00:03] Hoping for ...Qd5. Active counter play!} (30... Bxc4 31. Qg7#) 31. Nd2 {[%emt 0:00:08]} Qe6 {[%emt 0:00:38]} 32. h4 {[%emt 0:01:05]} (32. Qf4 $11 {is superior.}) 32... Nc1 {[%emt 0:00:32]} (32... Nb4 $15 {was preferrable.}) 33. Kh2 {[%emt 0:00:39]} a4 {[%emt 0:00:44]} 34. Bh3 {[%emt 0:00:10]} Qd5 {[%emt 0:00:04]} 35. Bg2 {[%emt 0:00:06]} Qe6 {[%emt 0:01:00] aiming for ...Nb3. Dancing on a razor blade.} 36. h5 {[%emt 0:00:01] Threatens to win with Be4.} Nb3 {[%emt 0:00:15]} (36... gxh5 37. Be4 (37. Ne4 Rf8 38. Nxf6+ Qxf6 39. Qxf6 h4 40. Be4 Ne2 41. Qh6 hxg3+ 42. fxg3 Re8 43. Qxh7+ Kf8 44. Rxf7#) 37... f5 38. Qg5+ Qg6 39. Qxd8+ Kg7 40. Bd5 (40. Bxd3 Qf6 $18) 40... Qf6 41. Qe8 (41. Rxf7+ Qxf7 42. Bxf7 Kxf7 $18) (41. Qxf6+ Kxf6 42. Rxf7+ Kg6 $18)) 37. hxg6 {[%emt 0:01:13]} (37. Bh3 $5 f5 $8 38. Nf3 $11) 37... hxg6 {[%emt 0:00:01] And now ...Nxd2 would win.} 38. Be4 $2 {[%emt 0:00:01][%mdl 8192] White does not recover from this.} (38. Rb4 $15 Nd4 39. Rxa4) 38... Nxd2 $19 {[%emt 0:00:27]} 39. Bxg6 {[%emt 0:00:10]} Nf3+ {[%emt 0:00:01] Black mates.} 40. Kg2 {[%emt 0:00:39] [#]} Nh4+ $1 {[%emt 0:00:01][%mdl 512]} 41. Qxh4 {[%emt 0:00:58]} Bxg6 {[%emt 0:00:02]} 42. Rb4 {[%emt 0:00:03]} Qd5+ {[%emt 0:00:45]} 43. f3 {[%emt 0:00:12]} Qg5 {[%emt 0:00:11]} 44. Qc4+ {[%emt 0:00:19]} Bf7 {[%emt 0:00:02]} 45. Qc7 {[%emt 0:00:19]} Qd2+ {[%emt 0:00:01]} 46. Kh3 {[%emt 0:00:03]} Qxb4 {[%emt 0:00:01]} 47. Qxd8+ {[%emt 0:00:01]} Kg7 {[%emt 0:00:02]} 48. Qxd3 {[%emt 0:00:19]} Qxb2 {[%emt 0:00:02]} 49. g4 {[%emt 0:00:01]} a3 {[%emt 0:00:09]} 50. g5 {[%emt 0:00:13]} fxg5 {[%emt 0:00:05]} 51. Qf5 {[%emt 0:00:01]} Qf6 {[%emt 0:00:03] Weighted Error Value: White=0.36/Black=0.17 (very precise) .  Loses game:     	White=1     	---        Mistake:       	White=5     	Black=4      Inaccurate:     	White=1     	---        OK:         	White=10    	Black=13     Best:        	White=2     	Black=1} 0-1